Workbook

Sheet menu
C2: 在庫処理メニュー
M4: =C5 -> 2018-06-30
C5: 2018-06-30 | M5: =MONTH(M4) -> 6
C6: 当月日付入力 | L6: 営業実績更新許可 | M6: 1
C7: =[1]menu!$E$9 -> 2018-06-30
C8: 標準入力チェック | E8: パスワード | F8: **** | M8: 当月売上抽出Xlsmを単独で実行する場合の当月と当月予備の売上高を選択するための
M9: 0 | N9: キーである。1は当月売上.xlsで1以外は当月売上Yが使用される。
C12: =[2]menu!$C$13 -> 00:00:00 | L12: YHチェック済・未 | M12: 0
C13: 仕入伝票入力状態 | E13: =IF(M12=0,"YHプログラムを起動せよ","") -> YHプログラムを起動せよ
C14: 2018-06-30 | E14: 仕入伝票入力が開いていないか確認せよ
C15: 営業在庫入力チェック | E15: 月末更新をしないと利期計画の計算はできない
E19: =TEXT(C5,"yyyy") -> 2018 | F19: パスワード | G19: 3210
E20: =M5+1 -> 7

Sheet メンテナンス
C2: メンテナンスメニュー

Sheet 表紙入力
A1: 301
F2: NonPasword
C4: 在庫機種表紙入力1 | G4: 在庫機種表紙入力2 | K4: 在庫機種表紙入力3 | O4: 在庫機種表紙入力4 | S4: 在庫機種表紙入力5 | W4: 在庫機種表紙入力6 | AA4: 在庫機種表紙入力7 | AE4: 在庫機種表紙入力8 | AI4: 在庫機種表紙入力9 | AM4: 在庫機種表紙入力10 | AQ4: 在庫機種表紙入力11 | AU4: 在庫機種表紙入力12 | AY4: 在庫機種表紙入力13 | BC4: 在庫機種表紙入力14 | BG4: 在庫機種表紙入力15
C5: =+menu!$C$5 -> 2018-06-30 | D5: A | G5: =+menu!$C$5 -> 2018-06-30 | H5: B | K5: =+menu!$C$5 -> 2018-06-30 | L5: C | O5: =+menu!$C$5 -> 2018-06-30 | P5: D | S5: =+menu!$C$5 -> 2018-06-30 | T5: E | W5: =+menu!$C$5 -> 2018-06-30 | X5: F | AA5: =+menu!$C$5 -> 2018-06-30 | AB5: G | AE5: =+menu!$C$5 -> 2018-06-30 | AF5: H | AI5: =+menu!$C$5 -> 2018-06-30 | AJ5: I | AM5: =+menu!$C$5 -> 2018-06-30 | AN5: J | AQ5: =+menu!$C$5 -> 2018-06-30 | AR5: K | AU5: =+menu!$C$5 -> 2018-06-30 | AV5: 鋼 材 | AY5: =+menu!$C$5 -> 2018-06-30 | AZ5: 電装部品 | BC5: =+menu!$C$5 -> 2018-06-30 | BD5: 一般購入部品 | BG5: =+menu!$C$5 -> 2018-06-30
B6: 1 | C6: 引当繰越仕掛品 | D6: 52340 | F6: 1 | G6: 引当繰越仕掛品 | H6: 0 | J6: 1 | K6: 引当繰越仕掛品 | L6: 2804222 | N6: 1 | O6: 引当繰越仕掛品 | P6: 0 | R6: 1 | S6: 引当繰越仕掛品 | T6: 2989963 | V6: 1 | W6: 引当繰越仕掛品 | X6: 6017786 | Z6: 1 | AA6: 引当繰越仕掛品 | AB6: 231086 | AD6: 1 | AE6: 引当繰越仕掛品 | AF6: 676762 | AH6: 1 | AI6: 引当繰越仕掛品 | AJ6: 0 | AL6: 1 | AM6: 引当繰越仕掛品 | AN6: 106530 | AP6: 1 | AQ6: 引当繰越仕掛品 | AR6: 0 | AT6: 1 | AX6: 1 | BB6: 1 | BF6: 1 | BH6: =#REF! -> 
B7: 2 | C7: 毎月棚卸 標準部品 | D7: =標準部品集計表紙!D18 ->  | F7: 2 | J7: 2 | K7: 毎月棚卸 標準部品 | L7: =標準部品集計表紙!H18 ->  | N7: 2 | O7: 毎月棚卸 標準部品 | P7: =標準部品集計表紙!AB18 ->  | R7: 2 | S7: 毎月棚卸 標準部品 | T7: 0 | V7: 2 | W7: 毎月棚卸 標準部品 | X7: 0 | Z7: 2 | AA7: 毎月棚卸 標準部品 | AB7: =標準部品集計表紙!L19 ->  | AD7: 2 | AE7: 毎月棚卸 標準部品 | AF7: =標準部品集計表紙!P18 ->  | AH7: 2 | AI7: 毎月棚卸 標準部品 | AJ7: 0 | AL7: 2 | AP7: 2 | AT7: 2 | AX7: 2 | BB7: 2 | BF7: 2
B8: 3 | F8: 3 | J8: 3 | N8: 3 | R8: 3 | V8: 3 | Z8: 3 | AD8: 3 | AE8: 毎月棚卸 購入部品 | AF8: =標準部品集計表紙!T18 ->  | AH8: 3 | AL8: 3 | AP8: 3 | AT8: 3 | AX8: 3 | BB8: 3 | BF8: 3
F9: 4 | J9: 4 | N9: 4 | R9: 4 | S9: 鋼材 | T9: =$AV$9*0.3 -> 0 | V9: 4 | W9: 鋼材 | X9: =$AV$9*0.3 -> 0 | Z9: 4 | AA9: 鋼材 | AB9: =$AV$9*0.3 -> 0 | AD9: 4 | AE9: 鋼材 | AF9: =$AV$9*0.3 -> 0 | AH9: 4 | AL9: 4 | AP9: 4 | AT9: 4 | AU9: 鋼材 | AV9: 0 | AX9: 4 | BB9: 4 | BF9: 4
F10: 5 | J10: 5 | K10: 電装部品 | L10: =AZ10*0.2 -> 138149 | N10: 5 | R10: 5 | S10: 電装部品 | T10: =AZ10*0.2 -> 138149 | V10: 5 | W10: 電装部品 | X10: =AZ10*0.2 -> 138149 | Z10: 5 | AA10: 電装部品 | AB10: =AZ10*0.2 -> 138149 | AD10: 5 | AE10: 電装部品 | AF10: =AZ10*0.2 -> 138149 | AH10: 5 | AL10: 5 | AP10: 5 | AT10: 5 | AX10: 5 | AY10: 電装部品 | AZ10: 690745 | BB10: 5 | BF10: 5
F11: 6 | J11: 6 | K11: 一般購入部品 | L11: =BD11*0.2 -> 228147.8 | N11: 6 | R11: 6 | S11: 一般購入部品 | T11: =BD11*0.2 -> 228147.8 | V11: 6 | W11: 一般購入部品 | X11: =BD11*0.2 -> 228147.8 | Z11: 6 | AA11: 一般購入部品 | AB11: =BD11*0.2 -> 228147.8 | AD11: 6 | AE11: 一般購入部品 | AF11: =BD11*0.2 -> 228147.8 | AH11: 6 | AL11: 6 | AP11: 6 | AT11: 6 | AX11: 6 | BB11: 6 | BC11: 一般購入部品 | BD11: 1140739 | BF11: 6
C12: 合 計 | D12: =SUM(D6:D11) ->  | G12: 合 計 | H12: =SUM(H6:H11) -> 0 | K12: 合 計 | L12: =SUM(L6:L11) ->  | O12: 合 計 | P12: =SUM(P6:P11) ->  | S12: 合 計 | T12: =SUM(T6:T11) -> 3356259.8 | W12: 合 計 | X12: =SUM(X6:X11) -> 6384082.8 | AA12: 合 計 | AB12: =SUM(AB6:AB11) ->  | AE12: 合 計 | AF12: =SUM(AF6:AF11) ->  | AI12: 合 計 | AJ12: =SUM(AJ6:AJ11) -> 0 | AM12: 合 計 | AN12: =SUM(AN6:AN11) -> 106530 | AQ12: 合 計 | AR12: =SUM(AR6:AR11) -> 0 | AU12: 合 計 | AV12: =SUM(AV6:AV11) -> 0 | AY12: 合 計 | AZ12: =SUM(AZ6:AZ11) -> 690745 | BC12: 合 計 | BD12: =SUM(BD6:BD11) -> 1140739 | BG12: 合 計 | BH12: =SUM(BH6:BH11) -> 
AU14: １１月と５月に棚卸する | AY14: １１月と５月に棚卸する | BC14: １１月と５月に棚卸する
AU15: 機種の使用割合で振り分けする | AY15: 機種の使用割合で振り分けする | BC15: 機種の使用割合で振り分けする
C26: 在庫機種表紙 1 | G26: 在庫機種表紙 2 | K26: 在庫機種表紙 3 | O26: 在庫機種表紙 4 | S26: 在庫機種表紙 5 | W26: 在庫機種表紙 6 | AA26: 在庫機種表紙 7 | AE26: 在庫機種表紙 8 | AI26: 在庫機種表紙 9 | AM26: 在庫機種表紙 10 | AQ26: 在庫機種表紙 11 | AU26: 在庫機種表紙 12 | AY26: 在庫機種表紙 13 | BC26: 在庫機種表紙 14 | BG26: 在庫機種表紙 15
C27: 2018-06-30 | D27: A | G27: 2018-06-30 | H27: B | K27: 2018-06-30 | L27: C | O27: 2018-06-30 | P27: D | S27: 2018-06-30 | T27: E | W27: 2018-06-30 | X27: F | AA27: 2018-06-30 | AB27: G | AE27: 2018-06-30 | AF27: H | AI27: 2018-06-30 | AJ27: I | AM27: 2018-06-30 | AN27: J | AQ27: 2018-06-30 | AR27: K | AU27: 2018-06-30 | AV27: 鋼 材 | AY27: 2018-06-30 | AZ27: 電装部品 | BC27: 2018-06-30 | BD27: 一般購入部品 | BG27: 2018-06-30
B28: 1 | C28: 引当繰越仕掛品 | D28: 52340 | F28: 1 | G28: 引当繰越仕掛品 | H28: 0 | J28: 1 | K28: 引当繰越仕掛品 | L28: 2804222 | N28: 1 | O28: 引当繰越仕掛品 | P28: 0 | R28: 1 | S28: 引当繰越仕掛品 | T28: 2989963 | V28: 1 | W28: 引当繰越仕掛品 | X28: 6017786 | Z28: 1 | AA28: 引当繰越仕掛品 | AB28: 231086 | AD28: 1 | AE28: 引当繰越仕掛品 | AF28: 676762 | AH28: 1 | AI28: 引当繰越仕掛品 | AJ28: 0 | AL28: 1 | AM28: 引当繰越仕掛品 | AN28: 106530 | AP28: 1 | AQ28: 引当繰越仕掛品 | AR28: 0 | AT28: 1 | AX28: 1 | BB28: 1 | BF28: 1
B29: 2 | C29: 毎月棚卸 標準部品 | F29: 2 | J29: 2 | K29: 毎月棚卸 標準部品 | N29: 2 | O29: 毎月棚卸 標準部品 | R29: 2 | S29: 毎月棚卸 標準部品 | T29: 0 | V29: 2 | W29: 毎月棚卸 標準部品 | X29: 0 | Z29: 2 | AA29: 毎月棚卸 標準部品 | AD29: 2 | AE29: 毎月棚卸 標準部品 | AH29: 2 | AI29: 毎月棚卸 標準部品 | AJ29: 0 | AL29: 2 | AP29: 2 | AT29: 2 | AX29: 2 | BB29: 2 | BF29: 2
B30: 3 | F30: 3 | J30: 3 | N30: 3 | R30: 3 | V30: 3 | Z30: 3 | AD30: 3 | AE30: 毎月棚卸 購入部品 | AH30: 3 | AL30: 3 | AP30: 3 | AT30: 3 | AX30: 3 | BB30: 3 | BF30: 3
F31: 4 | J31: 4 | N31: 4 | R31: 4 | S31: 鋼材 | T31: 0 | V31: 4 | W31: 鋼材 | X31: 0 | Z31: 4 | AA31: 鋼材 | AB31: 0 | AD31: 4 | AE31: 鋼材 | AF31: 0 | AH31: 4 | AL31: 4 | AP31: 4 | AT31: 4 | AU31: 鋼材 | AV31: 0 | AX31: 4 | BB31: 4 | BF31: 4
F32: 5 | J32: 5 | K32: 電装部品 | L32: 138149 | N32: 5 | R32: 5 | S32: 電装部品 | T32: 138149 | V32: 5 | W32: 電装部品 | X32: 138149 | Z32: 5 | AA32: 電装部品 | AB32: 138149 | AD32: 5 | AE32: 電装部品 | AF32: 138149 | AH32: 5 | AL32: 5 | AP32: 5 | AT32: 5 | AX32: 5 | AY32: 電装部品 | AZ32: 690745 | BB32: 5 | BF32: 5
F33: 6 | J33: 6 | K33: 一般購入部品 | L33: 228147.8 | N33: 6 | R33: 6 | S33: 一般購入部品 | T33: 228147.8 | V33: 6 | W33: 一般購入部品 | X33: 228147.8 | Z33: 6 | AA33: 一般購入部品 | AB33: 228147.8 | AD33: 6 | AE33: 一般購入部品 | AF33: 228147.8 | AH33: 6 | AL33: 6 | AP33: 6 | AT33: 6 | AX33: 6 | BB33: 6 | BC33: 一般購入部品 | BD33: 1140739 | BF33: 6
C34: 合 計 | G34: 合 計 | H34: 0 | K34: 合 計 | O34: 合 計 | S34: 合 計 | T34: 3356259.8 | W34: 合 計 | X34: 6384082.8 | AA34: 合 計 | AE34: 合 計 | AI34: 合 計 | AJ34: 0 | AM34: 合 計 | AN34: 106530 | AQ34: 合 計 | AR34: 0 | AU34: 合 計 | AV34: 0 | AY34: 合 計 | AZ34: 690745 | BC34: 合 計 | BD34: 1140739 | BG34: 合 計
K36: 一般購入品 20％振り当て | S36: 一般購入品 20％振り当て | W36: 一般購入品 20％振り当て | AA36: 一般購入品 20％振り当て | AE36: 一般購入品 20％振り当て | AU36: １１月と５月に棚卸する | AY36: １１月と５月に棚卸する | BC36: １１月と５月に棚卸する
K37: 電装部品 20％振り当て | S37: 電装部品 20％振り当て | W37: 電装部品 20％振り当て | AA37: 電装部品 20％振り当て | AE37: 電装部品 20％振り当て | AU37: 機種の使用割合で振り分けする | AY37: 機種の使用割合で振り分けする | BC37: 機種の使用割合で振り分けする

Sheet 在庫報告書
F2: NonPasword
B4: =+menu!C5 -> 2018-06-30 | P4: =B4 -> 2018-06-30 | AD4: =B18 -> 2018-06-30
F5: 在 庫 報 告 書 | L5: 当月 | R5: 在 庫 増 減 表 | AH5: 前月 在 庫 報 告 書 控
C6: A | D6: B | E6: C | F6: D | G6: E | H6: F | I6: G | J6: H | K6: I | L6: J | M6: K | N6: 総 合 計 | Q6: A | R6: B | S6: C | T6: D | U6: E | V6: F | W6: G | X6: H | Y6: I | Z6: J | AA6: K | AB6: 総 合 計 | AE6: A | AF6: B | AG6: C | AH6: D | AI6: E | AJ6: F | AK6: G | AL6: H | AM6: I | AN6: J | AO6: K | AP6: 総 合 計
B7: 1 引当繰越仕掛品 | C7: =+表紙入力!D6 -> 52340 | D7: =+表紙入力!H6 -> 0 | E7: =+表紙入力!L6 -> 2804222 | F7: =+表紙入力!P6 -> 0 | G7: =+表紙入力!T6 -> 2989963 | H7: =+表紙入力!X6 -> 6017786 | I7: =+表紙入力!AB6 -> 231086 | J7: =+表紙入力!AF6 -> 676762 | K7: =+表紙入力!AJ6 -> 0 | L7: 106530 | M7: 0 | N7: =SUM(C7:M7) -> 12878689 | P7: 1 引当繰越仕掛品 | Q7: =+C7-AE7 -> 15365 | R7: =+D7-AF7 -> 0 | S7: =E7-AG7 -> 1750967 | T7: 0 | U7: 2497972 | V7: =H7-AJ7 -> 2683832 | W7: -4407946 | X7: =J7-AL7 -> -21174 | Y7: 0 | Z7: 0 | AA7: 0 | AB7: =SUM(Q7:AA7) -> 2519016 | AD7: 1 引当繰越仕掛品 | AE7: 36975 | AF7: 0 | AG7: 1053255 | AH7: 0 | AI7: 491991 | AJ7: 3333954 | AK7: 4639032 | AL7: 697936 | AM7: 0 | AN7: 106530 | AO7: 0 | AP7: 10359673 | AS7: =SUM(AE7:AO7) -> 10359673
B8: 2 毎月棚卸標準部品 | C8: =+表紙入力!D7 ->  | D8: =+表紙入力!H7 -> 0 | E8: =+表紙入力!L7 ->  | F8: =+表紙入力!P7 ->  | G8: =+表紙入力!T7 -> 0 | H8: =+表紙入力!X7 -> 0 | I8: =+表紙入力!AB7 ->  | J8: =+表紙入力!AF7 ->  | K8: =+表紙入力!AJ7 -> 0 | L8: =+表紙入力!AK7 -> 0 | M8: 0 | P8: 2 毎月棚卸標準部品 | Q8: =C8-AE8 ->  | R8: 0 | U8: 0 | V8: 0 | Y8: 0 | Z8: 0 | AA8: 0 | AD8: 2 毎月棚卸標準部品 | AE8: 268947 | AF8: 0 | AG8: 1773255 | AH8: 0 | AI8: 0 | AJ8: 0 | AK8: 7948409 | AL8: 1086679 | AM8: 0 | AN8: 0 | AO8: 0 | AP8: 11077290 | AS8: =SUM(AE8:AO8) -> 11077290
B9: 3 毎月棚卸購入部品 | C9: 0 | D9: 0 | E9: 0 | F9: 0 | G9: 0 | H9: 0 | I9: 0 | J9: =+表紙入力!AF8 ->  | K9: 0 | L9: 0 | M9: =表紙入力!BH12 ->  | P9: 3 毎月棚卸購入部品 | Q9: 0 | R9: 0 | S9: 0 | T9: 0 | U9: 0 | V9: 0 | W9: 0 | Y9: 0 | Z9: 0 | AD9: 3 毎月棚卸購入部品 | AE9: 0 | AF9: 0 | AG9: 0 | AH9: 0 | AI9: 0 | AJ9: 0 | AK9: 0 | AL9: 2044224 | AM9: 0 | AN9: 0 | AO9: 0 | AP9: 2044224 | AS9: =SUM(AE9:AO9) -> 2044224
B10: 4 鋼材 | C10: =+表紙入力!D9 -> 0 | D10: =+表紙入力!H9 -> 0 | E10: 0 | F10: 0 | G10: =+表紙入力!T9 -> 0 | H10: =+表紙入力!X9 -> 0 | I10: =+表紙入力!AB9 -> 0 | J10: =+表紙入力!AF9 -> 0 | K10: 0 | L10: 0 | M10: 0 | N10: 0 | P10: 4 鋼材 | Q10: 0 | R10: 0 | S10: 0 | T10: 0 | U10: 0 | V10: 0 | W10: 0 | X10: 0 | Y10: 0 | Z10: 0 | AA10: 0 | AB10: 0 | AD10: 4 鋼材 | AE10: 0 | AF10: 0 | AG10: 0 | AH10: 0 | AI10: 0 | AJ10: 0 | AK10: 0 | AL10: 0 | AM10: 0 | AN10: 0 | AO10: 0 | AP10: 0
B11: 5 電装部品在庫 | C11: =+表紙入力!D10 -> 0 | D11: =+表紙入力!H10 -> 0 | E11: =+表紙入力!L10 -> 138149 | F11: 0 | G11: =+表紙入力!T10 -> 138149 | H11: =+表紙入力!X10 -> 138149 | I11: =+表紙入力!AB10 -> 138149 | J11: =+表紙入力!AF10 -> 138149 | K11: 0 | L11: 0 | M11: 0 | N11: 690745 | P11: 5 電装部品在庫 | Q11: 0 | R11: 0 | S11: 0 | T11: 0 | U11: 0 | V11: 0 | W11: 0 | X11: 0 | Y11: 0 | Z11: 0 | AA11: 0 | AB11: 0 | AD11: 5 電装部品在庫 | AE11: 0 | AF11: 0 | AG11: 138149 | AH11: 0 | AI11: 138149 | AJ11: 138149 | AK11: 138149 | AL11: 138149 | AM11: 0 | AN11: 0 | AO11: 0 | AP11: 690745 | AS11: =SUM(AE11:AO11) -> 690745
B12: 6 一般購入部品在庫 | C12: =+表紙入力!D11 -> 0 | D12: =+表紙入力!H11 -> 0 | E12: =+表紙入力!L11 -> 228147.8 | F12: 0 | G12: =+表紙入力!T11 -> 228147.8 | H12: =+表紙入力!X11 -> 228147.8 | I12: =+表紙入力!AB11 -> 228147.8 | J12: =+表紙入力!AF11 -> 228147.8 | K12: 0 | L12: 0 | M12: 0 | N12: 1140739 | P12: 6 一般購入部品在庫 | Q12: 0 | R12: 0 | S12: 0 | T12: 0 | U12: 0 | V12: 0 | W12: 0 | X12: 0 | Y12: 0 | Z12: 0 | AA12: 0 | AB12: 0 | AD12: 6 一般購入部品在庫 | AE12: 0 | AF12: 0 | AG12: 228147.8 | AH12: 0 | AI12: 228147.8 | AJ12: 228147.8 | AK12: 228147.8 | AL12: 228147.8 | AM12: 0 | AN12: 0 | AO12: 0 | AP12: 1140739 | AS12: =SUM(AE12:AO12) -> 1140739
B13: 合 計 | C13: =SUM(C7:C12) ->  | D13: 0 | G13: 3356259.8 | H13: =SUM(H7:H12) -> 6384082.8 | K13: 0 | L13: =SUM(L7:L12) -> 106530 | P13: 合 計 | Q13: =SUM(Q7:Q12) ->  | R13: =SUM(R7:R12) -> 0 | U13: 2497972 | V13: =SUM(V7:V12) -> 2683832 | Y13: 0 | Z13: 0 | AB13: =SUM(AB7:AB12) ->  | AD13: 合 計 | AE13: 305922 | AF13: 0 | AG13: 3192806.8 | AH13: 0 | AI13: 858287.8 | AJ13: 3700250.8 | AK13: 12953737.8 | AL13: 4195135.8 | AM13: 0 | AN13: 106530 | AO13: 0 | AP13: 25312671 | AS13: =SUM(AP7:AP12) -> 25312671 | AT13: =SUM(AP7:AP12) -> 25312671
M15: 確認横合計 | N15: =SUM(C13:M13) ->  | AA15: 横合計確認 | AB15: =SUM(Q13:AA13) ->  | AJ15: =AP13-N13 -> 
B18: 2018-06-30
F19: 在 庫 報 告 書 | L19: 当月
C20: A | D20: B | E20: C | F20: D | G20: E | H20: F | I20: G | J20: H | K20: I | L20: J | M20: K | N20: 総 合 計
B21: 1 引当繰越仕掛品 | C21: 52340 | D21: 0 | E21: 2804222 | F21: 0 | G21: 2989963 | H21: 6017786 | I21: 231086 | J21: 676762 | K21: 0 | L21: 106530 | M21: 0 | N21: 12878689
B22: 2 毎月棚卸標準部品 | C22: 268947 | D22: 0 | E22: 1773255 | F22: 0 | G22: 0 | H22: 0 | I22: 6286797 | J22: 805218 | K22: 0 | L22: 0 | M22: 0 | N22: 9134217
B23: 3 毎月棚卸購入部品 | C23: 0 | D23: 0 | E23: 0 | F23: 0 | G23: 0 | H23: 0 | I23: 0 | J23: 2173867 | K23: 0 | L23: 0 | M23: 0 | N23: 2173867
B24: 4 鋼材 | C24: 0 | D24: 0 | E24: 0 | F24: 0 | G24: 0 | H24: 0 | I24: 0 | J24: 0 | K24: 0 | L24: 0 | M24: 0 | N24: 0
B25: 5 電装部品在庫 | C25: 0 | D25: 0 | E25: 138149 | F25: 0 | G25: 138149 | H25: 138149 | I25: 138149 | J25: 138149 | K25: 0 | L25: 0 | M25: 0 | N25: 690745
B26: 6 一般購入部品在庫 | C26: 0 | D26: 0 | E26: 228147.8 | F26: 0 | G26: 228147.8 | H26: 228147.8 | I26: 228147.8 | J26: 228147.8 | K26: 0 | L26: 0 | M26: 0 | N26: 1140739
B27: 合 計 | C27: 321287 | D27: 0 | E27: 4943773.8 | F27: 0 | G27: 3356259.8 | H27: 6384082.8 | I27: 6884179.8 | J27: 4022143.8 | K27: 0 | L27: 106530 | M27: 0 | N27: 26018257

Sheet 標準部品集計表紙
C4: 毎月棚卸 標準部品明細 | D4: =menu!C5 -> 2018-06-30 | G4: 毎月棚卸 標準部品明細 | H4: =D4 -> 2018-06-30 | K4: 毎月棚卸 標準部品明細 | L4: =D4 -> 2018-06-30 | O4: 毎月棚卸 標準部品明細 | P4: =D4 -> 2018-06-30 | S4: 毎月棚卸 購入部品明細 | T4: =D4 -> 2018-06-30 | W4: 毎月棚卸 購入部品明細 | X4: =D4 -> 2018-06-30 | AA4: 毎月棚卸 購入部品明細 | AB4: =D4 -> 2018-06-30
C5: =+menu!$C$12 -> 00:00:00 | G5: =+menu!$C$12 -> 00:00:00 | K5: =+menu!$C$12 -> 00:00:00 | O5: =+menu!$C$12 -> 00:00:00 | S5: =+menu!$C$12 -> 00:00:00 | W5: =+menu!$C$12 -> 00:00:00 | AA5: =+menu!$C$12 -> 00:00:00
B6: ① | D6: =+標準部品計算1!H3 -> 0 | F6: ① | H6: =+標準部品計算1!#REF! ->  | J6: ① | L6: =+#REF! ->  | N6: ① | P6: =+#REF! ->  | R6: ① | T6: =+#REF! ->  | V6: ① | X6: =標準部品計算1!#REF! ->  | Z6: ① | AB6: =標準部品計算1!#REF! -> 
B7: ② | D7: =+標準部品計算1!R3 -> 0 | F7: ② | H7: =+標準部品計算1!#REF! ->  | J7: ② | L7: =+#REF! ->  | N7: ② | P7: =+#REF! ->  | R7: ② | T7: =+#REF! -> 
B8: ③ | D8: =+標準部品計算1!AB3 -> 0 | F8: ③ | H8: =+標準部品計算1!#REF! ->  | J8: ③ | L8: =+#REF! ->  | N8: ③ | P8: =+#REF! ->  | R8: ③ | T8: =+#REF! -> 
B9: ④ | D9: =+標準部品計算1!AL3 -> 0 | F9: ④ | H9: =+標準部品計算1!#REF! ->  | J9: ④ | L9: =+#REF! ->  | N9: ④ | P9: =+#REF! -> 
B10: ⑤ | D10: =+標準部品計算1!AV3 -> 0 | J10: ⑤ | L10: =+#REF! ->  | N10: ⑤ | P10: =+#REF! -> 
B11: ⑥ | D11: =+標準部品計算1!#REF! ->  | J11: ⑥ | L11: =+#REF! -> 
B12: ⑦ | D12: =+標準部品計算1!#REF! ->  | J12: ⑦ | L12: =+#REF! -> 
B13: ⑧ | D13: =+標準部品計算1!#REF! ->  | J13: ⑧ | L13: =+#REF! -> 
B14: ⑨ | D14: =+標準部品計算1!#REF! ->  | J14: ⑨ | L14: =+#REF! -> 
B15: ⑩ | D15: =+標準部品計算1!#REF! ->  | J15: ⑩ | L15: =+#REF! -> 
B16: ⑪ | D16: =+標準部品計算1!#REF! ->  | J16: ⑪ | L16: =+#REF! -> 
B17: ⑫ | D17: =+標準部品計算1!#REF! ->  | J17: ⑫ | L17: =+#REF! -> 
C18: 合 計 | D18: =SUM(D6:D17) ->  | G18: 合 計 | H18: =SUM(H6:H17) ->  | J18: ⑬ | L18: =#REF! ->  | O18: 合 計 | P18: =SUM(P6:P17) ->  | S18: 合 計 | T18: =SUM(T6:T17) ->  | W18: 合 計 | X18: =SUM(X6:X17) ->  | AA18: 合 計 | AB18: =SUM(AB6:AB17) -> 
K19: 合 計 | L19: =SUM(L6:L18) -> 

Sheet 標準部品計算1
C2: 毎月棚卸入力計算と印刷画面 | H2: =SUM(G5:G80) -> 0 | R2: =SUM(Q5:Q72) -> 0 | AB2: =SUM(AA5:AA29) -> 0 | AL2: =SUM(AK5:AK27) -> 0 | AV2: =SUM(AU5:AU26) -> 0
D3: 毎月棚卸標準部品 | F3: ① | G3: =+menu!$C$5 -> 2018-06-30 | H3: =G81 -> 0 | N3: 毎月棚卸標準部品 | P3: ② | Q3: =+menu!$C$5 -> 2018-06-30 | R3: =Q73 -> 0 | X3: 毎月棚卸標準部品 | Z3: ③ | AA3: =+menu!$C$5 -> 2018-06-30 | AB3: =AA30 -> 0 | AH3: 毎月棚卸標準部品 | AJ3: ④ | AK3: =+menu!$C$5 -> 2018-06-30 | AL3: =AK28 -> 0 | AR3: 毎月棚卸標準部品 | AT3: ⑤ | AU3: =+menu!$C$5 -> 2018-06-30 | AV3: =AU27 -> 0
B4: 品番 | C4: 品名 | D4: 数量 | E4: 材料費 | F4: 外注加工費 | G4: 金額 | I4: 材料単価 | J4: 加工単価 | L4: 品番 | M4: 品名 | N4: 数量 | O4: 材料費 | P4: 外注加工費 | Q4: 金額 | S4: 材料単価 | T4: 加工単価 | V4: 品番 | W4: 品名 | X4: 数量 | Y4: 材料費 | Z4: 外注加工費 | AA4: 金額 | AC4: 材料単価 | AD4: 加工単価 | AF4: 品番 | AG4: 品名 | AH4: 数量 | AI4: 材料費 | AJ4: 外注加工費 | AK4: 金額 | AM4: 材料単価 | AN4: 加工単価 | AP4: 品番 | AQ4: 品名 | AR4: 数量 | AS4: 材料費 | AT4: 外注加工費 | AU4: 金額 | AW4: 材料単価 | AX4: 加工単価
B5: 01-01 | I5: 9389 | J5: 12000 | L5: 01-01 | S5: 21247 | T5: 27000 | V5: 01-01 | AC5: 0 | AD5: 55000 | AM5: 40000 | AN5: 29000 | AW5: 0 | AX5: 105000
B6: 01-02 | I6: 9389 | J6: 12000 | L6: 01-02 | S6: 21247 | T6: 27000 | V6: 01-02 | AC6: 0 | AD6: 55000 | AM6: 1410 | AN6: 900 | AW6: 0 | AX6: 26277
B7: 01-03 | I7: 910 | J7: 0 | L7: 01-03 | S7: 1410 | T7: 1000 | V7: 01-03 | AC7: 818 | AD7: 13070 | AM7: 1683 | AN7: 600 | AW7: 0 | AX7: 14706
B8: 01-04 | I8: 910 | J8: 900 | L8: 01-04 | S8: 1020 | T8: 400 | V8: 01-04 | AC8: 1542 | AD8: 5250 | AM8: 5041 | AN8: 16800 | AW8: 0 | AX8: 1450
B9: 01-05 | I9: 604 | J9: 320 | L9: 01-05 | S9: 53340 | T9: 1515 | V9: 01-05 | AC9: 0 | AD9: 32400 | AM9: 2076 | AN9: 7500 | AW9: 0 | AX9: 51500
B10: 01-06 | I10: 3789 | J10: 9350 | L10: 01-06 | S10: 2423 | T10: 7020 | V10: 01-06 | AC10: 581 | AD10: 250 | AM10: 12000 | AN10: 15000 | AW10: 2925 | AX10: 350
B11: 01-07 | I11: 1202 | J11: 4230 | L11: 01-07 | S11: 0 | T11: 3550 | V11: 01-07 | AC11: 0 | AD11: 9000 | AM11: 2136 | AN11: 250 | AW11: 1960 | AX11: 4500
B12: 01-08 | I12: 0 | J12: 2890 | L12: 01-08 | S12: 0 | T12: 3550 | V12: 01-08 | AC12: 65 | AD12: 450 | AM12: 1200 | AN12: 2000 | AW12: 0 | AX12: 9500
B13: 01-09 | I13: 0 | J13: 2890 | L13: 01-09 | S13: 0 | T13: 1740 | V13: 01-09 | AC13: 0 | AD13: 350 | AM13: 1200 | AN13: 2000 | AW13: 0 | AX13: 1600
B14: 01-10 | I14: 0 | J14: 1375 | L14: 01-10 | S14: 0 | T14: 1740 | V14: 01-10 | AC14: 198 | AD14: 800 | AM14: 285 | AN14: 800 | AW14: 0 | AX14: 2342
B15: 01-11 | I15: 0 | J15: 1375 | L15: 01-11 | S15: 5090 | T15: 8500 | V15: 01-11 | AC15: 87 | AD15: 300 | AM15: 267 | AN15: 800 | AW15: 0 | AX15: 1262
B16: 01-12 | I16: 2507 | J16: 7200 | L16: 01-12 | S16: 891 | T16: 170 | V16: 01-12 | AC16: 198 | AD16: 800 | AM16: 154 | AN16: 300 | AW16: 0 | AX16: 622
B17: 01-13 | I17: 398 | J17: 170 | L17: 01-13 | S17: 0 | T17: 195 | V17: 01-13 | AC17: 230 | AD17: 300 | AM17: 35 | AN17: 600 | AW17: 0 | AX17: 193
B18: 01-14 | I18: 0 | J18: 175 | L18: 01-14 | S18: 500 | T18: 0 | V18: 01-14 | AC18: 0 | AD18: 2000 | AM18: 720 | AN18: 1500 | AW18: 50 | AX18: 600
B19: 01-15 | I19: 400 | J19: 0 | L19: 01-15 | S19: 0 | T19: 110 | V19: 01-15 | AC19: 722 | AD19: 3700 | AM19: 2570 | AN19: 4000 | AW19: 0 | AX19: 1200
B20: 01-16 | I20: 470 | J20: 0 | L20: 01-16 | S20: 1200 | T20: 1200 | V20: 01-16 | AC20: 243 | AD20: 1500 | AM20: 3800 | AN20: 9060 | AW20: 5250 | AX20: 2950
B21: 01-17 | I21: 470 | J21: 850 | L21: 01-17 | S21: 0 | T21: 170 | V21: 01-17 | AC21: 0 | AD21: 1395 | AM21: 0 | AN21: 2000 | AW21: 2100 | AX21: 2500
B22: 01-18 | I22: 160 | J22: 0 | L22: 01-18 | S22: 246 | T22: 1200 | V22: 01-18 | AC22: 320 | AD22: 1500 | AM22: 0 | AN22: 200 | AW22: 1950 | AX22: 6200
B23: 01-19 | I23: 160 | J23: 500 | L23: 01-19 | S23: 0 | T23: 230 | V23: 01-19 | AC23: 1320 | AD23: 5000 | AM23: 0 | AN23: 3800 | AW23: 780 | AX23: 600
B24: 01-20 | I24: 0 | J24: 170 | L24: 01-20 | S24: 650 | T24: 800 | V24: 01-20 | AC24: 0 | AD24: 4500 | AM24: 0 | AN24: 300 | AW24: 0 | AX24: 1750
I25: 0 | J25: 200 | S25: 1280 | T25: 0 | AC25: 320 | AD25: 1560 | AM25: 0 | AN25: 700
I26: 0 | J26: 100 | S26: 425 | T26: 300 | AC26: 722 | AD26: 3700
I27: 0 | J27: 900 | S27: 4370 | T27: 0 | AC27: 189 | AD27: 750 | AQ27: 合計
I28: 650 | J28: 900 | S28: 4370 | T28: 3650 | AC28: 0 | AD28: 800 | AG28: 合計
I29: 260 | J29: 420 | S29: 1450 | T29: 2450
I30: 260 | J30: 360 | S30: 0 | T30: 6500 | W30: 合計
I31: 390 | J31: 300 | S31: 640 | T31: 750
I32: 0 | J32: 65 | S32: 150 | T32: 0
I33: 550 | J33: 0 | S33: 67 | T33: 400
I34: 720 | J34: 0 | S34: 430 | T34: 600
I35: 720 | J35: 0 | S35: 430 | T35: 600
I36: 350 | J36: 220 | S36: 0 | T36: 230
I37: 2500 | J37: 0 | S37: 0 | T37: 285
I38: 2500 | J38: 3000 | S38: 38 | T38: 440
I39: 510 | J39: 1120 | S39: 170 | T39: 250
I40: 750 | J40: 0 | S40: 170 | T40: 250
I41: 750 | J41: 850 | S41: 217 | T41: 1620
I42: 32 | J42: 150 | S42: 1548 | T42: 3550
I43: 150 | J43: 520 | S43: 500 | T43: 500
I44: 150 | J44: 520 | S44: 1560 | T44: 2200
I45: 0 | J45: 230 | S45: 1010 | T45: 850
I46: 77 | J46: 200 | S46: 0 | T46: 7200
I47: 38 | J47: 250 | S47: 126 | T47: 700
I48: 120 | J48: 250 | S48: 2080 | T48: 0
I49: 120 | J49: 250 | S49: 1640 | T49: 2750
I50: 162 | J50: 780 | S50: 0 | T50: 290
I51: 0 | J51: 68 | S51: 268 | T51: 1100
I52: 1040 | J52: 0 | S52: 65 | T52: 500
I53: 1040 | J53: 1750 | S53: 0 | T53: 115
I54: 0 | J54: 290 | S54: 1880 | T54: 0
I55: 138 | J55: 575 | S55: 1880 | T55: 1900
I56: 0 | J56: 350 | S56: 146 | T56: 390
I57: 14 | J57: 120 | S57: 212 | T57: 550
I58: 1210 | J58: 0 | S58: 48 | T58: 475
I59: 1210 | J59: 1650 | S59: 0 | T59: 100
I60: 220 | J60: 265 | S60: 1200 | T60: 950
I61: 0 | J61: 260 | S61: 1460 | T61: 3550
I62: 1170 | J62: 0 | S62: 470 | T62: 1500
I63: 1170 | J63: 1100 | S63: 0 | T63: 68
I64: 0 | J64: 180 | S64: 916 | T64: 1300
I65: 0 | J65: 70 | S65: 0 | T65: 700
I66: 0 | J66: 50 | S66: 0 | T66: 200
I67: 0 | J67: 250 | S67: 0 | T67: 2700
I68: 1170 | J68: 1100 | S68: 0 | T68: 17381
I69: 0 | J69: 390 | S69: 0 | T69: 8329
I70: 0 | J70: 100
I71: 1500 | J71: 1100
I72: 1170 | J72: 1100
I73: 39 | J73: 550 | M73: 合計
I74: 0 | J74: 85
I75: 370 | J75: 800
I76: 1500 | J76: 1100
I77: 0 | J77: 285
I78: 370 | J78: 0
I79: 370 | J79: 500
C81: 合計

Sheet 標準部品入力2
B2: 標準部品数量 入力画面
C3: 部品在庫表 | G3: 部品在庫表 | K3: 部品在庫表 | O3: 部品在庫表 | S3: 部品在庫表 | W3: 部品在庫表
B4: 品番 | C4: 品名 | D4: 数量 | F4: 品番 | G4: 品名 | H4: 数量 | J4: 品番 | K4: 品名 | L4: 数量 | N4: 品番 | O4: 品名 | P4: 数量 | R4: 品番 | S4: 品名 | T4: 数量 | V4: 品番 | W4: 品名 | X4: 数量
B5: A0-01 | D5: 2 | F5: A1-01 | H5: 5 | J5: A2-01 | L5: 2 | N5: A4-30 | P5: 9 | R5: A6-01 | T5: 10 | V5: B1-01 | X5: 5
B6: 02a | D6: 10 | F6: 02 | H6: 5 | J6: 02 | L6: 4 | N6: 01 | P6: 2 | R6: 02 | T6: 11 | V6: 02 | X6: 6
B7: 02b | D7: 4 | F7: 03 | H7: 5 | J7: 03 | L7: 20 | N7: 02 | P7: 1 | R7: 03 | T7: 20 | V7: 03 | X7: 9
B8: 05 | D8: 6 | F8: 04 | H8: 5 | J8: 04 | L8: 10 | N8: 03 | P8: 21 | R8: 04 | T8: 7 | V8: 04 | X8: 2
B9: 06 | D9: 14 | F9: 06 | H9: 194 | J9: 05 | L9: 2 | N9: 05 | P9: 4 | R9: 05 | T9: 6
B10: 08 | D10: 6 | F10: 08 | H10: 107 | J10: 06 | L10: 3 | N10: 06 | P10: 4 | R10: 06 | T10: 8 | V10: B2-01 | X10: 3
B11: 09 | D11: 7 | F11: 10 | H11: 60 | J11: 07 | L11: 19 | N11: 07 | P11: 0 | R11: 07 | T11: 6 | V11: 02 | X11: 3
B12: 10 | D12: 7 | F12: 11 | H12: 9 | J12: 08 | L12: 15 | N12: 08 | P12: 8 | R12: 08 | T12: 9
B13: 11 | D13: 6 | F13: 12 | H13: 0 | J13: 13 | L13: 422 | N13: 09 | P13: 8 | R13: 09 | T13: 0 | V13: C-01 | X13: 0
B14: 12 | D14: 0 | F14: 13 | H14: 93 | J14: 14a | L14: 6 | N14: 10 | P14: 10 | R14: 10 | T14: 9
B15: 13 | D15: 4 | F15: 14 | H15: 361 | J15: 14b | L15: 18 | N15: 11 | P15: 5 | R15: 11 | T15: 7 | X15: 5
B16: 13 | D16: 4 | F16: 18 | H16: 8 | J16: 15 | L16: 63 | N16: 12a | P16: 9 | R16: 12 | T16: 101 | X16: 0
B17: 14 | D17: 10 | F17: 19 | H17: 3 | N17: 12b | P17: 17
B18: 15 | D18: 1 | F18: 21 | H18: 7 | J18: A3-01 | L18: 13 | N18: 13 | P18: 11 | R18: A7-01 | T18: 7 | V18: A1-19 | X18: 10
B19: 16 | D19: 0 | F19: 22 | H19: 6 | J19: 02 | L19: 93 | N19: 14a | P19: 10 | R19: 02 | T19: 10 | V19: A1-01 | X19: 336
B20: 17 | D20: 5 | F20: 23 | H20: 7 | J20: 03 | L20: 9 | N20: 14b | P20: 4 | R20: 03 | T20: 9 | V20: A1-27a | X20: 12
B21: 20 | D21: 0 | F21: 24 | H21: 6 | J21: 04 | L21: 8 | N21: 15a | P21: 31 | R21: 04 | T21: 9 | V21: A1-27b | X21: 11
B22: 21 | D22: 10 | F22: 25 | H22: 6 | J22: 05a | L22: 6 | N22: 15b | P22: 24 | R22: 05 | T22: 0 | V22: A1-01 | X22: 888
B23: 21 | D23: 0 | F23: 26 | H23: 6 | J23: 05b | L23: 8 | N23: 15c | P23: 23 | R23: 06 | T23: 37 | V23: A4-01 | X23: 1
F24: 28 | H24: 26 | J24: 06 | L24: 5 | N24: 16 | P24: 2 | R24: 07 | T24: 0 | V24: A0-01 | X24: 3
F25: 29 | H25: 16 | J25: 08 | L25: 9 | N25: 17 | P25: 3 | R25: 08 | T25: 5 | V25: A0-01 | X25: 16
F26: 30 | H26: 27 | J26: 09 | L26: 11 | N26: 20 | P26: 9 | R26: 08b | T26: 10 | V26: A0-01 | X26: 9
F27: 32 | H27: 7 | J27: 10 | L27: 7 | N27: 22a | P27: 12 | R27: 09 | T27: 2 | V27: A4-02 | X27: 88
F28: 33a | H28: 7 | N28: 22b | P28: 27 | R28: 10 | T28: 14 | V28: B1-02 | X28: 8
F29: 33b | H29: 7 | R29: 11 | T29: 18 | V29: B1-01 | X29: 3
N30: 24 | P30: 36 | V30: B1-02 | X30: 3
N31: 25 | P31: 32 | V31: A6-07 | X31: 0
N32: 26 | P32: 35 | V32: B2-02 | X32: 6
N33: 28 | P33: 7
N34: 29 | P34: 32
N35: 31a | P35: 7
N36: 31b | P36: 7
